bitfinex-derivatives/quotes_SOLF0:USTF0_20260203
["timestamp","ask_amount","ask_price","bid_price","bid_amount"]
[1770146169100,75.31619738,98.827,98.71,141.9782]
[1770146169296,75.31619738,98.827,98.718,9.1263]
[1770146169502,75.31619738,98.827,98.736,141.9397]
[1770146169898,84.43249738,98.827,98.718,141.9663]
[1770146170096,141.8286,98.815,98.706,141.9839]
[1770146170301,141.8286,98.815,98.669,142.0365]
[1770146170302,75.31619738,98.799,98.696,141.9975]
[1770146170495,75.31619738,98.79,98.68,142.0211]
[1770146170694,75.31619738,98.79,98.699,141.9939]
[1770146170896,9.1199,98.789,98.702,9.1279]
[1770146171095,75.31619738,98.748,98.649,142.0662]
[1770146171295,75.31619738,98.748,98.665,142.0431]
[1770146171496,75.31619738,98.748,98.669,9.1309]
[1770146171709,75.31619738,98.762,98.659,142.0505]
[1770146171994,75.31619738,98.762,98.63,31.8052485]
[1770146171995,75.31619738,98.734,98.646,9.133]
[1770146172202,75.31619738,98.721,98.611,142.1207]
[1770146172495,75.31619738,98.721,98.632,9.1343]
[1770146172697,75.31619738,98.721,98.616,142.1124]
[1770146172901,75.31619738,98.721,98.61,142.1211]
[1770146173100,75.31619738,98.721,98.601,142.1354]
[1770146173101,84.44239738,98.721,98.628,9.1347]
[1770146173494,75.31619738,98.72,98.611,142.1207]
[1770146173695,141.9478,98.732,98.614,142.1164]
[1770146173696,75.31619738,98.695,98.614,142.1164]
[1770146173891,75.31619738,98.695,98.616,142.1137]
[1770146174095,75.31619738,98.695,98.614,142.1156]
[1770146174295,75.31619738,98.695,98.607,9.1366]
[1770146174693,75.31619738,98.695,98.6,142.1364]
[1770146174901,75.31619738,98.695,98.591,142.1496]
[1770146174902,75.31619738,98.695,98.606,142.1272]
[1770146175095,75.31619738,98.695,98.609,142.1236]
[1770146175297,75.31619738,98.733,98.654,142.058]
[1770146175696,75.31619738,98.733,98.668,9.131]
[1770146175895,75.31619738,98.76,98.668,9.131]
[1770146176101,75.31619738,98.758,98.668,9.131]
[1770146176303,9.1235,98.75,98.668,9.131]
[1770146176495,75.31619738,98.758,98.668,9.131]
[1770146176897,75.31619738,98.756,98.668,9.131]
[1770146177204,75.31619738,98.738,98.642,142.0762]
[1770146177402,75.31619738,98.738,98.645,142.0718]
[1770146177599,75.31619738,98.735,98.637,142.0822]
[1770146177805,75.31619738,98.735,98.648,9.1328]
[1770146178005,75.31619738,98.735,98.621,142.1063]
[1770146178006,75.31619738,98.721,98.621,142.1063]
[1770146178208,75.31619738,98.721,98.644,151.2062]
[1770146178507,75.31619738,98.721,98.644,9.1332]
[1770146178708,75.31619738,98.721,98.63,9.1345]
[1770146178911,75.31619738,98.717,98.625,142.0997]
[1770146179205,75.31619738,98.717,98.621,142.1062]
[1770146179403,75.31619738,98.714,98.622,142.1044]
[1770146179597,75.31619738,98.714,98.635,142.0861]
[1770146179797,75.31619738,98.741,98.662,142.0469]
[1770146180008,75.31619738,98.738,98.642,142.0757]
[1770146180199,75.31619738,98.768,98.665,142.0431]
[1770146180403,75.31619738,98.758,98.67,9.1308]
[1770146180602,75.24380506,98.756,98.67,9.1308]
[1770146181205,75.24380506,98.756,98.679,151.1525]
[1770146181401,75.24380506,98.756,98.68,2.53475302]
[1770146181604,75.24380506,98.756,98.681,2.53475302]
[1770146181910,75.24380506,98.756,98.684,142.0158]
[1770146182106,75.24380506,98.756,98.674,142.03]
[1770146182107,75.24380506,98.756,98.687,142.0112]
[1770146182305,75.24380506,98.756,98.688,2.53475302]
[1770146182506,75.24380506,98.756,98.689,2.53475302]
[1770146182708,75.24380506,98.756,98.69,2.53475302]
[1770146183006,75.24380506,98.756,98.7,141.9921]
[1770146183204,75.24380506,98.791,98.716,141.9695]
[1770146183409,141.7856,98.845,98.709,141.9787]
[1770146183410,75.24380506,98.856,98.717,2.53478793]
[1770146183607,75.24380506,98.856,98.556,24.24031314]
[1770146183608,75.24380506,98.847,98.738,141.9375]
[1770146183807,75.24380506,98.828,98.739,2.53478793]
[1770146184011,75.24380506,98.828,98.726,141.9541]
[1770146184012,75.24380506,98.828,98.742,141.9319]
[1770146184207,75.24380506,98.828,98.736,141.9402]
[1770146184208,75.24380506,98.828,98.762,141.9033]
[1770146184409,75.24380506,98.828,98.758,141.9091]
[1770146184410,75.24380506,98.828,98.766,141.8975]
[1770146184709,75.24380506,98.828,98.767,2.53478793]
[1770146184908,75.24380506,98.856,98.777,141.8816]
[1770146185212,75.24380506,98.856,98.803,141.8442]
[1770146185403,75.24380506,98.856,98.804,2.53478793]
[1770146185600,75.24380506,98.856,98.805,2.53478793]
[1770146185801,75.24380506,98.856,98.806,2.53478793]
[1770146186006,141.6696,98.926,98.825,141.8123]
[1770146186210,31.8052485,98.94,98.826,2.53478793]
[1770146186211,141.7102,98.897,98.826,2.53478793]
[1770146186512,141.696,98.907,98.777,141.882]
[1770146186513,141.7389,98.877,98.777,141.882]
[1770146186700,141.7269,98.886,98.788,141.8662]
[1770146186901,9.1118,98.877,98.79,9.1197]
[1770146187208,9.1118,98.877,98.778,141.8804]
[1770146187209,141.7017,98.903,98.803,141.8435]
[1770146187413,9.1078,98.92,98.832,141.8025]
[1770146187614,436.0052485,98.94,98.804,141.8428]
[1770146187615,141.6947,98.908,98.804,141.8428]
[1770146187808,141.7173,98.892,98.784,6.56986826]
[1770146188113,71.95887092,98.879,98.794,150.9759]
[1770146188308,71.95887092,98.873,98.779,141.8786]
[1770146188511,71.95887092,98.873,98.793,150.9785]
[1770146189019,71.95887092,98.873,98.807,9.1181]
[1770146189212,71.95887092,98.9,98.819,141.8209]
[1770146189408,31.8052485,98.94,98.819,141.8209]
[1770146189409,71.96700969,98.927,98.839,141.7928]
[1770146189608,71.96700969,98.927,98.862,141.7599]
[1770146189806,141.6672,98.927,98.837,6.55359072]
[1770146190006,141.6541,98.937,98.81,141.8346]
[1770146190007,71.96700969,98.91,98.81,141.8346]
[1770146190208,71.96700969,98.906,98.81,9.1178]
[1770146190514,71.96700969,98.906,98.815,141.8265]
[1770146190814,71.96700969,98.904,98.822,141.8173]
[1770146191014,71.96700969,98.904,98.812,141.8318]
[1770146191208,71.96700969,98.902,98.808,9.118]
[1770146191403,71.96700969,98.902,98.82,141.8195]
[1770146191613,71.96700969,98.902,98.81,141.8337]
[1770146191809,72.1952867,98.891,98.795,141.856]
[1770146192110,72.1952867,98.885,98.79,141.8631]
[1770146192312,72.1952867,98.879,98.797,9.119]
[1770146192611,72.1952867,98.871,98.775,6.09703671]
[1770146192815,81.3082867,98.864,98.775,6.09703671]
[1770146193022,141.7487,98.87,98.77,9.1216]
[1770146193023,72.1952867,98.857,98.77,9.1216]
[1770146193211,141.7667,98.858,98.77,9.1216]
[1770146193212,72.1952867,98.855,98.77,9.1216]
[1770146193416,72.1952867,98.855,98.782,9.1204]
[1770146194114,72.1952867,98.855,98.77,141.8921]
[1770146194616,72.1952867,98.855,98.768,5.91758978]
[1770146194813,72.1952867,98.855,98.77,9.1216]
[1770146195017,72.28501016,98.851,98.738,5.91758978]
[1770146195521,141.7745,98.852,98.738,5.91758978]
[1770146195522,72.23416996,98.827,98.738,5.91758978]
[1770146195816,214.07466996,98.806,98.712,6.0192702]
[1770146196006,72.23416996,98.8,98.716,141.9694]
[1770146196210,72.23416996,98.825,98.738,141.9381]
[1770146196409,72.23416996,98.825,98.752,9.1232]
[1770146196610,72.23416996,98.795,98.697,141.9966]
[1770146196815,9.1223,98.763,98.683,6.0192702]
[1770146197009,81.35646996,98.763,98.683,6.0192702]
[1770146197214,72.23416996,98.763,98.683,6.0192702]
[1770146197420,141.8718,98.785,98.698,9.1282]
[1770146197615,72.23416996,98.791,98.704,141.9863]
[1770146197815,72.23416996,98.791,98.693,6.30165841]
[1770146197816,72.23416996,98.791,98.71,9.1271]
[1770146198517,72.23416996,98.791,98.711,2.53367031]
[1770146198725,9.121,98.777,98.712,2.53367031]
[1770146199028,72.09297585,98.775,98.713,2.53367031]
[1770146199322,81.21507585,98.765,98.714,2.53367031]
[1770146199614,81.21507585,98.765,98.68,9.1298]
[1770146199615,81.21507585,98.765,98.715,2.53367031]
[1770146199811,81.21507585,98.765,98.716,2.53367031]
[1770146200012,141.8842,98.776,98.648,142.0676]
[1770146200013,71.94999135,98.745,98.648,142.0676]
[1770146200212,71.94999135,98.719,98.624,142.1015]
[1770146200523,71.94999135,98.714,98.62,142.1079]
[1770146200720,71.94999135,98.704,98.624,9.1351]
[1770146201414,71.94999135,98.695,98.596,142.142]
[1770146201617,71.94999135,98.722,98.642,142.0759]
[1770146201818,141.92,98.751,98.674,142.029]
[1770146201819,71.94999135,98.751,98.674,142.029]
[1770146202017,71.94999135,98.751,98.658,142.0524]
[1770146202210,71.94999135,98.773,98.663,142.0458]
[1770146202413,141.9376,98.739,98.658,6.96981729]
[1770146202619,71.94999135,98.731,98.651,142.0629]
[1770146202817,71.94999135,98.731,98.652,142.0611]
[1770146203019,71.94999135,98.731,98.657,9.132]
[1770146203419,73.40108995,98.774,98.676,145.71233022]
[1770146203616,73.40108995,98.769,98.683,9.1296]
[1770146204215,73.40108995,98.769,98.676,3.68543022]
[1770146204216,73.40108995,98.769,98.697,141.9959]
[1770146204421,73.40108995,98.769,98.688,142.0091]
[1770146204616,73.40108995,98.769,98.676,3.68543022]
[1770146204824,73.40108995,98.769,98.696,141.998]
[1770146205223,73.40108995,98.769,98.707,9.1274]
[1770146205525,73.6990921,98.799,98.722,141.961]
[1770146205714,73.6990921,98.799,98.708,3.08942591]
[1770146205915,73.6990921,98.799,98.713,141.9736]
[1770146206225,141.8153,98.824,98.721,141.9622]
[1770146206427,82.8165921,98.815,98.721,141.9622]
[1770146206621,73.6990921,98.811,98.72,9.1262]
[1770146207023,82.8170921,98.809,98.72,9.1262]
[1770146207327,73.46516172,98.801,98.714,3.08942591]
[1770146207517,141.8659,98.789,98.691,142.0052]
[1770146207716,73.46516172,98.788,98.692,142.0042]
[1770146207915,73.46516172,98.788,98.693,142.0029]
[1770146208120,73.46516172,98.788,98.705,141.9853]
[1770146208316,73.46516172,98.788,98.693,3.55728667]
[1770146208317,141.8691,98.787,98.693,3.55728667]
[1770146208520,141.8691,98.787,98.691,9.1288]
[1770146208521,73.46516172,98.786,98.698,3.55728667]
[1770146208915,73.46516172,98.786,98.699,9.1281]
[1770146209920,72.88879587,98.785,98.699,151.122]
[1770146210127,72.88879587,98.785,98.699,9.1281]
[1770146210323,72.88879587,98.785,98.708,9.1273]
[1770146210524,141.8791,98.78,98.68,142.0208]
[1770146210729,141.8665,98.788,98.669,142.0365]
[1770146210730,75.10204793,98.757,98.669,142.0365]
[1770146211227,75.10204793,98.757,98.672,151.1627]
[1770146211424,75.10204793,98.757,98.672,9.1306]
[1770146211625,75.10204793,98.743,98.659,9.1318]
[1770146211922,75.10204793,98.715,98.614,5.69375615]
[1770146212121,75.10204793,98.715,98.63,142.0931]
[1770146212321,75.10204793,98.715,98.631,9.1344]
[1770146212518,75.10204793,98.686,98.619,142.1088]
[1770146212731,75.10204793,98.744,98.645,142.0718]
[1770146213027,75.10204793,98.744,98.658,9.1319]
[1770146213430,72.87720345,98.773,98.678,142.0238]
[1770146213729,72.87720345,98.766,98.665,142.0425]
[1770146214327,9.1227,98.758,98.671,9.1307]
[1770146214630,72.87720345,98.766,98.676,142.0269]
[1770146214823,72.87720345,98.766,98.684,142.0154]
[1770146215018,72.87720345,98.766,98.674,4.77234971]
[1770146215628,81.99930345,98.766,98.68,142.0215]
[1770146215929,81.99930345,98.766,98.674,4.77234971]
[1770146216124,72.87720345,98.766,98.688,142.0093]
[1770146216325,72.87720345,98.766,98.704,9.1276]
[1770146216527,72.91830501,98.753,98.664,142.0443]
[1770146216829,72.91830501,98.753,98.659,9.1318]
[1770146216830,9.1243,98.741,98.659,9.1318]
[1770146217031,9.1243,98.741,98.626,12.04896851]
[1770146217032,72.91830501,98.713,98.624,142.1011]
[1770146217227,72.91830501,98.713,98.601,142.1346]
[1770146217228,72.91830501,98.74,98.651,142.0621]
[1770146217427,9.1246,98.738,98.655,9.1322]
[1770146217629,72.77683629,98.738,98.65,142.0644]
[1770146218032,72.77683629,98.727,98.634,142.0876]
[1770146218528,72.77683629,98.727,98.658,142.0519]
[1770146218729,72.77683629,98.756,98.671,142.0344]
[1770146219035,72.77683629,98.756,98.661,142.0487]
[1770146219232,9.123,98.755,98.681,9.1297]
[1770146219629,81.9755286,98.755,98.681,9.1297]
[1770146219830,72.8525286,98.741,98.652,4.97308402]
[1770146220022,141.916,98.754,98.62,142.1072]
[1770146220023,72.8525286,98.732,98.624,4.8216994]
[1770146220222,72.8525286,98.719,98.624,4.8216994]
[1770146220426,9.1269,98.714,98.64,9.1336]
[1770146220627,72.8525286,98.719,98.65,142.0635]
[1770146220822,72.8525286,98.746,98.652,146.8832994]
[1770146221031,9.1244,98.74,98.661,9.1316]
[1770146221234,72.8525286,98.739,98.661,9.1316]
[1770146221430,72.8525286,98.739,98.666,142.0409]
[1770146221729,73.81717446,98.76,98.66,142.0496]
[1770146221936,73.81717446,98.75,98.659,2.89240769]
[1770146222232,73.81717446,98.75,98.674,9.1304]
[1770146222629,73.81717446,98.75,98.67,142.0356]
[1770146222935,73.81717446,98.75,98.685,9.1294]
[1770146223335,73.81717446,98.75,98.67,142.0356]
[1770146223537,73.81717446,98.75,98.675,142.0275]
[1770146223733,73.69503895,98.778,98.701,141.9913]
[1770146224126,73.69503895,98.778,98.692,142.0032]
[1770146224127,73.69503895,98.778,98.712,9.1269]
[1770146224331,73.69503895,98.778,98.685,142.0142]
[1770146224531,73.69503895,98.778,98.682,3.13667871]
[1770146224729,8.54315625,98.79,98.703,141.9882]
[1770146224935,73.69503895,98.8,98.703,141.9882]
[1770146225134,141.8374,98.809,98.691,3.13667871]
[1770146225135,73.69503895,98.787,98.691,3.13667871]
[1770146225333,71.94716525,98.772,98.696,9.1284]
[1770146225633,71.94716525,98.768,98.669,142.0372]
[1770146225833,71.94716525,98.75,98.673,142.0308]
[1770146226033,71.94716525,98.75,98.682,142.0178]
[1770146226438,71.94716525,98.748,98.673,9.1306]
[1770146226633,71.94716525,98.744,98.648,142.0673]
[1770146226834,9.1249,98.734,98.66,9.1317]
[1770146227230,8.54315625,98.73,98.66,9.1317]
[1770146227537,8.54315625,98.73,98.651,142.0631]
[1770146227538,71.94716525,98.744,98.671,9.1307]
[1770146227732,80.74739094,98.73,98.64,6.63242609]
[1770146227932,72.20423469,98.73,98.662,142.0462]
[1770146228131,72.20423469,98.73,98.653,6.11828722]
[1770146228132,80.74739094,98.73,98.653,6.11828722]
[1770146228334,72.20423469,98.709,98.626,6.11828722]
[1770146228626,72.20423469,98.709,98.617,9.1357]
[1770146228627,8.54315625,98.69,98.617,9.1357]
[1770146228841,72.20423469,98.726,98.643,142.0737]
[1770146229232,72.20423469,98.724,98.63,6.11828722]
[1770146229730,213.79284264,98.749,98.662,9.1315]
[1770146229928,71.87044264,98.748,98.662,9.1315]
[1770146230331,71.87044264,98.748,98.655,6.78587131]
[1770146230534,71.87044264,98.748,98.627,142.0972]
[1770146230535,71.87044264,98.776,98.691,142.0056]
[1770146230729,141.8484,98.801,98.668,148.82437131]
[1770146230730,80.41359889,98.77,98.668,148.82437131]
[1770146230929,71.87044264,98.741,98.658,9.1319]
[1770146231334,71.87044264,98.741,98.661,142.0485]
[1770146231534,71.87044264,98.741,98.662,142.0462]
[1770146231731,71.87044264,98.741,98.663,142.045]
[1770146231938,71.87044264,98.741,98.639,142.0799]
[1770146231939,71.96779004,98.769,98.694,142.0004]
[1770146232130,71.96779004,98.749,98.653,142.0591]
[1770146232332,71.96779004,98.749,98.639,142.0799]
[1770146232333,71.96779004,98.749,98.65,6.59117652]
[1770146232640,71.96779004,98.749,98.666,142.0412]
[1770146232837,150.39225625,98.8,98.681,142.0192]
[1770146232838,8.54315625,98.77,98.681,142.0192]
[1770146233038,71.96779004,98.77,98.677,142.0254]
[1770146233241,80.51094629,98.77,98.673,142.0313]
[1770146233435,80.51094629,98.77,98.682,9.1297]
[1770146233436,9.1235,98.75,98.682,9.1297]
[1770146233635,81.49763853,98.75,98.682,9.1297]
[1770146233831,72.37413853,98.745,98.646,147.84827953]
[1770146234032,9.1246,98.738,98.658,9.1319]
[1770146234438,72.37413853,98.729,98.646,5.77847953]
[1770146234636,72.37413853,98.716,98.636,9.1339]
[1770146235138,72.37413853,98.716,98.628,142.0954]
[1770146235541,72.01223073,98.705,98.612,142.1191]
[1770146235736,72.01223073,98.705,98.622,142.1051]
[1770146235939,72.01223073,98.705,98.637,9.1338]
[1770146236242,72.01223073,98.705,98.641,142.0767]
[1770146236438,72.01223073,98.731,98.67,9.1308]
[1770146236638,72.01223073,98.731,98.648,142.0669]
[1770146236841,72.01223073,98.723,98.622,6.50229515]
[1770146237146,8.54315625,98.71,98.638,9.1338]
[1770146237442,8.54315625,98.71,98.649,9.1328]
[1770146237647,72.01223073,98.718,98.638,142.0821]
[1770146237834,72.01223073,98.718,98.658,142.052]
[1770146238144,72.01843642,98.744,98.687,9.1292]
[1770146238347,72.01843642,98.744,98.653,6.48988376]
[1770146238539,72.01843642,98.73,98.657,142.0546]
[1770146238735,72.01843642,98.73,98.654,6.48988376]
[1770146238950,141.8511,98.799,98.654,6.48988376]
[1770146238951,72.01843642,98.759,98.705,9.1276]
[1770146239342,72.01843642,98.759,98.679,142.0226]
[1770146239540,72.01843642,98.759,98.693,9.1286]
[1770146239732,72.01843642,98.759,98.66,6.48988376]
[1770146239932,70.69383443,98.749,98.668,142.0385]
[1770146240138,70.69383443,98.749,98.674,142.03]
[1770146240333,70.69383443,98.749,98.68,9.1298]
[1770146240636,70.69383443,98.749,98.678,142.024]
[1770146241142,70.69383443,98.749,98.691,142.0052]
[1770146241337,70.69110779,98.776,98.701,141.9906]
[1770146241541,70.55171706,98.769,98.683,142.0171]
[1770146241742,8.54315625,98.77,98.661,142.0483]
[1770146241743,70.55171706,98.761,98.686,9.1293]
[1770146242136,70.55171706,98.761,98.663,9.73052292]
[1770146242336,70.55171706,98.749,98.663,9.73052292]
[1770146242536,8.54315625,98.73,98.663,9.73052292]
[1770146243136,79.67711706,98.729,98.652,9.1325]
[1770146243544,70.55171706,98.729,98.678,9.13]
[1770146243738,8.54315625,98.75,98.672,142.0322]
[1770146243941,70.14844546,98.779,98.712,141.9754]
[1770146244441,70.14844546,98.779,98.692,142.0036]
[1770146244642,70.14844546,98.779,98.702,141.9896]
[1770146244837,70.14844546,98.777,98.704,9.1277]
[1770146245037,70.14844546,98.777,98.705,141.9852]
[1770146245643,70.14844546,98.777,98.718,9.1264]
[1770146246240,70.14844546,98.769,98.672,12.2474421]
[1770146246445,70.14844546,98.769,98.67,10.53706614]
[1770146246941,9.124,98.745,98.674,9.1304]
[1770146247143,141.8878,98.774,98.67,10.53706614]
[1770146247144,70.20015641,98.77,98.703,141.988]
[1770146247447,70.20015641,98.77,98.708,141.9811]
[1770146247746,70.20015641,98.77,98.69,10.43364423]
[1770146247747,70.20015641,98.77,98.701,141.9914]
[1770146248444,70.20015641,98.77,98.704,141.9866]
[1770146248645,70.33673497,98.799,98.715,141.9699]
[1770146248941,70.33673497,98.823,98.729,10.1604871]
[1770146249142,70.33673497,98.848,98.772,141.8881]
[1770146249342,70.33673497,98.848,98.767,141.8959]
[1770146249544,70.33673497,98.848,98.755,10.1604871]
[1770146250244,70.33673497,98.845,98.78,141.8777]
[1770146250443,70.33673497,98.845,98.783,141.8735]
[1770146250639,69.67886531,98.872,98.798,150.9707]
[1770146250842,69.67886531,98.889,98.799,13.38008094]
[1770146251045,69.67886531,98.889,98.822,9.1167]
[1770146251241,69.67886531,98.889,98.822,150.9331]
[1770146251440,69.67886531,98.889,98.805,13.38008094]
[1770146251642,69.67886531,98.889,98.811,9.1178]
[1770146251844,69.67886531,98.889,98.805,13.38008094]
[1770146251845,69.67886531,98.889,98.818,141.823]
[1770146252341,69.67886531,98.889,98.824,9.1166]
[1770146252942,69.67886531,98.889,98.81,9.1179]
[1770146253143,69.67886531,98.889,98.811,141.833]
[1770146253447,69.67886531,98.889,98.791,141.8614]
[1770146253448,69.67886531,98.889,98.819,150.9384]
[1770146253643,69.67886531,98.889,98.824,141.8136]
[1770146254148,69.67886531,98.889,98.829,141.8073]
[1770146254440,69.67886531,98.889,98.817,141.8243]
[1770146254650,69.67886531,98.889,98.818,141.8219]
[1770146254840,69.67886531,98.914,98.848,141.7797]
[1770146255038,69.67886531,98.914,98.843,141.7866]
[1770146255247,69.67886531,98.914,98.826,141.8104]
[1770146255248,69.67886531,98.914,98.849,9.1143]
[1770146255442,8.51071364,98.89,98.825,141.8127]
[1770146256140,69.67886531,98.909,98.834,141.7992]
[1770146256338,69.67886531,98.909,98.835,141.7984]
[1770146256547,69.67886531,98.909,98.843,9.1148]
[1770146256744,69.67886531,98.909,98.849,141.7785]
[1770146256948,69.67886531,98.906,98.799,141.8501]
[1770146257147,69.67886531,98.906,98.768,12.2474421]
[1770146257148,69.67886531,98.849,98.766,141.8979]
[1770146257346,69.67886531,98.849,98.775,141.8846]
[1770146257744,69.67886531,98.849,98.764,12.37906721]
[1770146257745,8.51071364,98.83,98.765,141.8993]
[1770146257958,69.67886531,98.829,98.751,141.919]
[1770146258143,69.67886531,98.829,98.754,141.9151]
[1770146258349,69.67886531,98.829,98.761,141.9046]
[1770146258749,69.67886531,98.829,98.774,9.1212]
[1770146259055,8.51071364,98.81,98.751,141.919]
[1770146259248,8.51071364,98.81,98.754,141.9146]
[1770146259446,69.67886531,98.829,98.773,141.8877]
[1770146259648,69.67886531,98.829,98.779,141.8787]
[1770146259849,69.67886531,98.829,98.753,141.9166]
[1770146260047,69.67886531,98.829,98.771,9.1215]
[1770146260349,69.67886531,98.829,98.774,141.8861]
[1770146261062,69.67886531,98.829,98.784,9.1203]
[1770146261354,69.67886531,98.829,98.739,13.32994316]
[1770146262463,69.67886531,98.789,98.7,12.2474421]
[1770146262652,69.67886531,98.779,98.692,15.1104876]
[1770146262851,69.67886531,98.779,98.663,12.2474421]
[1770146262852,8.51071364,98.76,98.667,15.1104876]
[1770146263054,78.18957895,98.76,98.667,15.1104876]
[1770146263254,9.1222,98.764,98.636,15.1104876]
[1770146263255,141.94,98.737,98.636,15.1104876]
[1770146263457,8.51071364,98.7,98.607,15.1104876]
[1770146263660,69.67886531,98.699,98.607,15.1104876]
[1770146263858,8.51071364,98.72,98.616,15.1104876]
[1770146264055,69.67886531,98.726,98.625,15.1104876]
[1770146264451,69.67886531,98.726,98.63,8.51071364]
[1770146264653,69.67886531,98.726,98.636,14.7903814]
[1770146264860,69.67886531,98.719,98.611,14.7903814]
[1770146265153,69.67886531,98.719,98.6,142.1357]
[1770146265154,69.67886531,98.745,98.635,142.0852]
[1770146265355,69.67886531,98.773,98.657,14.7903814]
[1770146265551,141.8394,98.807,98.65,8.51071364]
[1770146265552,69.67886531,98.804,98.72,9.1262]
[1770146265751,69.67886531,98.804,98.685,142.0138]
[1770146265752,69.67886531,98.839,98.744,14.7903814]
[1770146265956,69.67886531,98.839,98.757,14.7903814]
[1770146266153,69.67886531,98.872,98.775,14.7903814]
[1770146266358,69.67886531,98.872,98.77,8.51071364]
[1770146266359,69.67886531,98.872,98.786,15.76230525]
[1770146266663,8.51071364,98.9,98.815,15.76230525]
[1770146266664,69.67886531,98.9,98.815,15.76230525]
[1770146267052,69.67886531,98.929,98.83,8.51071364]
[1770146267254,69.67886531,98.929,98.831,15.76230525]
[1770146267650,69.67886531,98.958,98.851,15.76230525]
[1770146268155,69.67886531,98.958,98.856,15.76230525]
[1770146268749,31.72947178,98.99,98.856,15.76230525]
[1770146268750,69.67886531,98.94,98.856,15.76230525]
[1770146268951,69.67886531,98.94,98.819,21.3644421]
[1770146268952,141.6807,98.918,98.82,12.65192915]
[1770146269153,69.67886531,98.915,98.82,12.65192915]
[1770146269655,69.67886531,98.902,98.821,2.53040302]
[1770146269855,69.67886531,98.902,98.822,2.53040302]
[1770146270159,69.67886531,98.902,98.823,2.53040302]
[1770146270352,69.67886531,98.902,98.824,2.53040302]
[1770146270551,69.67886531,98.902,98.825,2.53040302]
[1770146270755,74.95770318,98.884,98.766,13.02505748]
[1770146270960,74.95770318,98.878,98.766,13.02505748]
[1770146271257,74.95770318,98.877,98.766,13.02505748]
[1770146271457,74.95770318,98.869,98.766,13.02505748]
[1770146271854,74.95770318,98.901,98.77,157.4475605]
[1770146272059,74.95770318,98.901,98.801,15.5554605]
[1770146272259,74.95770318,98.933,98.816,15.5554605]
[1770146272465,74.95770318,98.922,98.816,15.5554605]
[1770146272663,74.95770318,98.905,98.783,17.86201699]
[1770146272955,74.95770318,98.905,98.803,9.1185]
[1770146273153,74.95770318,98.905,98.804,17.86201699]
[1770146273353,74.95770318,98.905,98.813,141.8305]
[1770146273562,74.95770318,98.905,98.814,17.86201699]
[1770146275058,403.88,98.954,98.797,141.8532]
[1770146275059,71.48276559,98.932,98.821,18.56712722]
[1770146275259,71.48276559,98.932,98.83,141.8054]
[1770146275463,71.48276559,98.932,98.828,18.56712722]
[1770146275961,71.48276559,98.932,98.834,141.8002]
[1770146276157,71.48276559,98.932,98.851,141.7759]
[1770146276457,31.72947178,98.98,98.851,141.7759]
[1770146276458,71.48276559,98.958,98.872,150.857]
[1770146276659,71.48276559,98.958,98.883,141.7293]
[1770146276861,71.48276559,98.958,98.875,141.7415]
[1770146276862,71.48276559,98.958,98.875,141.7407]
[1770146277256,71.48276559,98.958,98.875,168.44115304]
[1770146277454,71.48276559,98.986,98.896,17.58865304]
[1770146277862,71.48276559,98.986,98.901,159.29255304]
[1770146278060,71.48276559,98.986,98.894,141.7129]
[1770146278061,71.48276559,99.027,98.911,141.6893]
[1770146278358,71.48276559,99.027,98.938,141.6507]
[1770146278569,71.48276559,99.027,98.942,141.6453]
[1770146278859,71.48276559,99.024,98.912,141.6881]
[1770146279260,71.48276559,99.024,98.921,141.6751]
[1770146279768,71.48276559,99.024,98.912,141.6881]
[1770146279961,71.48276559,99.024,98.929,141.6634]
[1770146280155,71.48276559,99.024,98.931,141.6611]
[1770146280364,31.72947178,99.09,98.973,16.35929118]
[1770146280560,71.48276559,99.085,98.985,141.5832]
[1770146280859,71.48276559,99.085,98.966,141.6104]
[1770146281062,71.48276559,99.085,99.003,141.5581]
[1770146281463,71.48276559,99.085,99.003,9.1001]
[1770146281762,71.48276559,99.085,98.995,141.5694]
[1770146281957,71.48276559,99.085,99.001,141.561]
[1770146282161,71.48276559,99.085,98.977,141.5946]
[1770146282162,71.48276559,99.085,99.015,141.5397]
[1770146282461,71.48276559,99.085,98.977,15.71230793]
[1770146282654,71.48276559,99.049,98.942,141.6446]
[1770146282856,71.48276559,99.049,98.973,9.1029]
[1770146283061,71.48276559,99.049,98.974,2.52725008]
[1770146283364,71.48276559,99.039,98.939,150.7554]
[1770146283562,71.48276559,99.039,98.946,141.639]
[1770146283866,71.48276559,99.039,98.947,2.52773792]